Cogmind - Beta 16 @@@ ROGUE MODE // 2025.11.02 @ 02:21:43 Player: alice_fexa Result: Destroyed by KM-VVQ(h) with Bolt Gun Performance ------------- Evolutions (0) 0 Regions Visited (4) 800 Robots Destroyed (53) 265 Value Destroyed (1110) 1110 Prototype IDs (16) 320 Alien Tech Used (0) 0 Bonus (800) 800 TOTAL SCORE: 3295 Bonus ------- Registered with UFD 300 Met Optimus in HQ 500 Cogmind --------- Core Integrity 0/250 Matter 260/300 Energy 140/140 System Corruption 0% Temperature Cool (66) Movement Rolling (195) Ox7 Location -8/Scraptown Parts ------- > --- POWER (1) -------- Light Deuterium Engine > --- PROPULSION (2) --- Armored Wheel > --- UTILITY (2) ------ Huge Storage Unit Advanced Visual Processing Unit > --- WEAPON (2) ------- Subdweller Beam Cannon > --- INVENTORY (25) --- Deuterium Engine Cesium-ion Thruster Cesium-ion Thruster Flightbrick Medium Storage Unit High-capacity Matter Pod (200) Deep Structural Scanner Advanced Melee Analysis Suite Advanced Melee Analysis Suite Improved Propulsion Shielding Hardened Light Armor Plating Insulated Plating EM Pulse Cannon EM Pulse Cannon Subdweller Beam Cannon Gauss Cannon Rocket Launcher Plasma Cutter CPS Tube (2) Heavy Mace Makeshift Hammer Axe Peak State ------------ > --- POWER ------------ Light Nuclear Core > --- PROPULSION ------- Improved Treads Armored Wheel > --- UTILITY ---------- Huge Storage Unit Advanced Visual Processing Unit > --- WEAPON ----------- Heavy Mace Axe > --- INVENTORY -------- Light Deuterium Engine Cesium-ion Thruster Cesium-ion Thruster Flightbrick Medium Storage Unit High-capacity Matter Pod Deep Structural Scanner Advanced Melee Analysis Suite Improved Propulsion Shielding Hardened Light Armor Plating Insulated Plating EM Pulse Cannon EM Pulse Cannon Subdweller Beam Cannon Subdweller Beam Cannon Gauss Cannon Rocket Launcher Missile Launcher Plasma Cutter CPS Tube Makeshift Hammer [Rating: 26] Favorites ----------- Power Ion Engine Engine Ion Engine Power Core Light Nuclear Core Propulsion Light Treads Treads Light Treads Wheel Armored Wheel Utility Huge Storage Unit Device Cooling System Storage Huge Storage Unit Processor Targeting Computer Weapon Subdweller Beam Cannon Energy Cannon Subdweller Beam Cannon Ballistic Gun Light Assault Rifle Ballistic Cannon Light Cannon Launcher Missile Launcher Impact Weapon Heavy Mace Slashing Weapon Axe Build | -11 -10 -10 -10 -8 ------- Run | Yrd Mat Min Sub Scr Slots Evolved . | . . . . . Power . | . . . . . Propulsion . | . . . . . Utility . | . . . . . Weapon . | . . . . . Parts Attached 37 | 6 11 3 8 9 Power 10 | 1 5 . 2 2 Engine 9 | 1 5 . 2 1 Core 1 | . . . . 1 Reactor . | . . . . . Propulsion 8 | 2 2 1 . 3 Treads 5 | 2 2 . . 1 Leg . | . . . . . Wheel 3 | . . 1 . 2 Hover . | . . . . . Flight . | . . . . . Utility 7 | 1 2 1 2 1 Device 2 | . . . 2 . Storage 3 | 1 1 1 . . Processor 2 | . 1 . . 1 Hackware . | . . . . . Protection . | . . . . . Artifact . | . . . . . Weapon 12 | 2 2 1 4 3 Energy Gun . | . . . . . Energy Cannon 3 | . . . 3 . Ballistic Gun 3 | 2 1 . . . Ballistic Cannon 1 | . 1 . . . Launcher 3 | . . 1 1 1 Special Weapon . | . . . . . Impact Weapon 1 | . . . . 1 Slashing Weapon 1 | . . . . 1 Piercing Weapon . | . . . . . Special Melee Weapon . | . . . . . Unidentified Prototypes . | . . . . . Parts Lost 6 | . 1 1 1 3 Power . | . . . . . Propulsion 3 | . . 1 . 2 Utility 1 | . . . 1 . Weapon 2 | . 1 . . 1 Highest Loss Streak 2 | . 1 1 1 2 To Critical Strikes 1 | . . 1 . . Average Backups 18 | 1 10 18 21 21 Power 1 | . 1 3 2 1 Propulsion 2 | . 2 1 2 2 Utility 3 | . 1 2 1 5 Weapon 9 | . 5 9 14 10 Tool/Special . | . . . . . Unused Backups 41 | . 5 3 3 30 Power 4 | . . 2 2 . Propulsion 6 | . 1 . . 5 Utility 11 | . 1 . . 10 Weapon 18 | . 3 1 1 13 Tool/Special 2 | . . . . 2 Average Slot Usage (%) 99 | . 99 100 99 98 Engine 13 | . 14 14 14 12 Treads 15 | . 28 16 14 10 Wheel 11 | . . 11 14 17 Device 4 | . . . 13 5 Storage 13 | . 14 14 14 13 Processor 9 | . 13 14 . 8 Energy Cannon 16 | . . . 21 26 Ballistic Gun 5 | . 14 14 3 . Ballistic Cannon 5 | . 13 13 3 . Peak Build Rating 26 | 6 9 12 21 26 Average Rating 16 | 5 7 10 17 22 On Entrance 9 | . 6 9 12 21 Avg Prop Armor Cover (%) 13 | . . 11 11 14 Naked Turns . | . . . . . Heaviest Build 107 | 10 30 90 107 107 Greatest Support 40 | 40 40 40 12 28 Greatest Overweight (x) 8 | . . 7 8 8 Average Overweight (x) 4 | . . 5 7 6 Largest Inventory Capacity 25 | 8 15 25 25 25 Average Capacity 21 | 7 11 23 25 24 Most Carried 25 | 3 15 21 25 25 Average Carried 20 | 1 10 18 23 24 Final Capacity 25 | 8 15 25 25 25 Final Carried 25 | 3 15 21 25 25 Class Distribution -------------------- 80% | Mutant 19% | Derelict-Mutant Dominant Class ---------------- Mutant | -10/Materials Mutant | -10/Mines Mutant | -10/Subcaves Mutant | -8/Scraptown Resources | -11 -10 -10 -10 -8 ----------- Run | Yrd Mat Min Sub Scr Matter Collected 1563 | 266 722 248 118 209 Remotely . | . . . . . Salvage Created 1446 | 72 638 134 191 411 Parts 76 | 2 28 17 15 14 Haulers Intercepted 2 | . 2 . . . Recyclers Shooed 2 | . 2 . . . Parts Field Recycled . | . . . . . Retrieved Matter . | . . . . . Parts Self-Destructed 6 | . . . 6 . Prevented . | . . . . . Parts Restored . | . . . . . Kills | -11 -10 -10 -10 -8 ------- Run | Yrd Mat Min Sub Scr Combat Hostiles Destroyed 40 | . 15 9 7 9 Guns 9 | . 5 4 . . Cannons 18 | . 10 2 4 2 AOE 13 | . . 3 3 7 Classes Destroyed 13 | 1 6 1 2 3 Worker 4 | . 2 2 . . Tunneler 1 | . . 1 . . Hauler 2 | . 2 . . . Recycler 3 | 1 2 . . . Mechanic 1 | . 1 . . . Watcher 2 | . 2 . . . Swarmer 18 | . 6 9 3 . Grunt 10 | . 9 . 1 . Sentry 1 | . . . 1 . Subdweller 2 | . . . 2 . Bolteater 1 | . . . . 1 Federalist 3 | . . . . 3 Scrapper 5 | . . . . 5 Best Kill Streak 4 | 1 3 4 3 3 Combat Bots Only 3 | . 3 3 3 3 Max Kills in Single Turn 2 | 1 1 2 2 2 Gunslinging . | . . . . . Exploded 2 | . . 2 2 2 Melee . | . . . . . Uniques/NPCs Destroyed . | . . . . . Combat | -11 -10 -10 -10 -8 -------- Run | Yrd Mat Min Sub Scr Hostile Shots Fired 151 | . 76 26 21 28 Missed 43 | . 25 6 7 5 Hits 108 | . 51 20 14 23 Melee 1 | . . . . 1 Projectile 107 | . 51 20 14 22 Critical Strikes 3 | . 1 1 . 1 Damage Taken 1356 | . 547 223 229 357 Core 256 | . 95 65 16 80 Absorbed by Shields . | . . . . . Regen/Repaired (Parts) 83 | . 83 . . . Core Remaining (%) 100 | 100 . . . . Volleys Fired 137 | 3 96 16 10 12 Largest 2 | 2 2 2 2 2 Hottest 160 | 40 50 50 160 160 Shots Fired 257 | 6 192 30 16 13 Gun 116 | 6 96 14 . . Cannon 128 | . 96 14 13 5 Launcher 13 | . . 2 3 8 Special . | . . . . . Kinetic 226 | 6 192 28 . . Thermal 18 | . . . 13 5 Explosive 13 | . . 2 3 8 Electromagnetic . | . . . . . Robot Hit Streak 16 | 3 16 10 15 5 Robot Miss Streak 4 | 1 4 3 2 1 Penetration Max . | . . . . . Secondary Targets . | . . . . . Shots Hit Robots 163 | 4 129 16 7 7 Core Hits 85 | 3 48 11 7 16 Critical Kills . | . . . . . Critical Parts Destroyed . | . . . . . Critical Strikes 3 | . 3 . . . Blast 3 | . 3 . . . Melee Attacks . | . . . . . Impact . | . . . . . Slashing . | . . . . . Piercing . | . . . . . Sneak Attacks . | . . . . . Combat Hostiles . | . . . . . Follow-up Attacks . | . . . . . Damage Inflicted 3792 | 30 1612 418 386 1346 Guns 646 | 30 504 112 . . Cannons 1450 | . 1108 99 192 51 Explosions 1696 | . . 207 194 1295 Melee . | . . . . . Ramming . | . . . . . Kinetic 1853 | 30 1612 211 . . Thermal 243 | . . . 192 51 Explosive 1696 | . . 207 194 1295 Electromagnetic . | . . . . . Impact . | . . . . . Slashing . | . . . . . Piercing . | . . . . . Highest Corruption . | . . . . . Average Corruption . | . . . . . Corruption Purged . | . . . . . Corruption Blocked . | . . . . . Overload Shots . | . . . . . Overflow Damage 135 | . 45 21 . 69 Projectiles 50 | . 45 . . 5 Explosions 85 | . . 21 . 64 Melee . | . . . . . Knockbacks 21 | . 20 1 . . Impact . | . . . . . Kinetic 20 | . 19 1 . . Secondary 1 | . 1 . . . Self-Inflicted Damage 83 | . . 64 19 . Shots 3 | . . 2 1 . Rammed . | . . . . . Targets Rammed . | . . . . . Kicked . | . . . . . Crushed . | . . . . . Highest Temperature 102 | . 28 . 1 102 Average Temperature 13 | . 9 . 1 35 Received Heat Transfer 388 | . 195 . 24 169 Siege Activations . | . . . . . Martial Activations . | . . . . . Shielding Activations . | . . . . . Robots Disrupted . | . . . . . Combat Hostiles . | . . . . . Robots Corrupted . | . . . . . Combat Hostiles . | . . . . . Parts Fried 1 | . 1 . . . Impact Corruptions . | . . . . . Robots Melted . | . . . . . Combat Hostiles . | . . . . . Parts Melted 5 | . . . . 5 Heat Transferred 321 | . . . 259 62 Parts Sabotaged . | . . . . . Parts Stolen . | . . . . . Parts Stripped . | . . . . . Power Chain Reactions . | . . . . . Alert | -11 -10 -10 -10 -8 ------- Run | Yrd Mat Min Sub Scr Maximum Alert Level . | . . . . . Low Security (%) 100 | 100 100 100 . . Level 1 . | . . . . . Level 2 . | . . . . . Level 3 . | . . . . . Level 4 . | . . . . . Level 5 . | . . . . . High Security . | . . . . . Max Security . | . . . . . Peak Influence 145 | 5 145 131 . . Initial 45 | . . 45 . . Average 60 | . 70 47 . . Influence Increases 921 | 5 550 256 110 . Destroy 0b10 Robot/C 580 | . 300 180 100 . Destroy 0b10 Robot/NC 65 | 5 45 15 . . Destroy Leader 108 | . 68 30 10 . Trap Triggered on 0b10 10 | . 10 . . . Successful Hack 34 | . 34 . . . Disable Machine 15 | . . 15 . . Destroy Structure 19 | . 3 16 . . Lose Combat Pursuer 90 | . 90 . . . Influence Decreases 921 | 5 432 374 110 . Entered New Map 73 | . . 73 . . Time Decay 828 | 5 422 291 110 . Lost Part 20 | . 10 10 . . Squads Dispatched 5 | . 4 1 . . Investigation 3 | . 2 1 . . Extermination . | . . . . . Reinforcement 2 | . 2 . . . Assault . | . . . . . Garrison . | . . . . . Intercept . | . . . . . Searches Triggered . | . . . . . Construction Impeded . | . . . . . Haulers Reinforced . | . . . . . Active Scanning Responses . | . . . . . Cargo Convoy Interrupts . | . . . . . Stealth | -11 -10 -10 -10 -8 --------- Run | Yrd Mat Min Sub Scr Distress Signals 1 | . 1 . . . Communications Jammed . | . . . . . Distress Signals . | . . . . . Times Spotted 69 | . 31 9 7 22 Peak Tracking Total 7 | . 5 3 3 7 Tactical Retreats 5 | . 4 . . 1 Traps | -11 -10 -10 -10 -8 ------- Run | Yrd Mat Min Sub Scr Traps Triggered 4 | . 3 . 1 . Indirectly . | . . . . . Trap Hack Attempts . | . . . . . Triggered . | . . . . . Disarmed . | . . . . . Reprogrammed 3 | . 3 . . . Reused 1 | . 1 . . . Traps Extracted . | . . . . . Installed . | . . . . . Triggered 1 | . 1 . . . Machines | -11 -10 -10 -10 -8 ---------- Run | Yrd Mat Min Sub Scr Machines Disabled 4 | . . 1 1 2 Max in Single Turn 1 | . . 1 1 1 Machines Repaired . | . . . . . Machines Dismantled . | . . . . . Machines Sabotaged . | . . . . . Overloaded Fab Kills . | . . . . . Hacking | -11 -10 -10 -10 -8 --------- Run | Yrd Mat Min Sub Scr Machines Accessed 14 | . 9 1 1 3 Terminals 6 | . 6 . . . Fabricators . | . . . . . Repair Stations 1 | . 1 . . . Recycling Units 2 | . 2 . . . Scanalyzers . | . . . . . Garrison Access . | . . . . . Total Hacks 62 | . 30 1 1 30 Successful 50 | . 18 1 1 30 Failed 12 | . 12 . . . Catastrophic 2 | . 2 . . . Database Lockouts . | . . . . . Manual 16 | . 16 . . . Terminals 23 | . 23 . . . Fabricators . | . . . . . Repair Stations 2 | . 2 . . . Recycling Units 5 | . 5 . . . Scanalyzers . | . . . . . Garrison Access . | . . . . . Terminal Hacks 38 | . 6 1 1 30 Record 25 | . . . . 25 Robot Analysis 6 | . 1 . . 5 Prototype ID Bank 2 | . 2 . . . Open Door 1 | . . 1 . . Locate Traps 2 | . 2 . . . Reprogram Traps 1 | . 1 . . . Proto ID Catalog 1 | . . . 1 . Fabricator Hacks . | . . . . . Repair Station Hacks 2 | . 2 . . . Scan Component 1 | . 1 . . . Repair 1 | . 1 . . . Recycling Unit Hacks 2 | . 2 . . . Retrieve Components 2 | . 2 . . . Scanalyzer . | . . . . . Garrison Access Hacks . | . . . . . Unauthorized Hacks 8 | . 8 . . . Terminals 8 | . 8 . . . Botnet 2 | . 2 . . . Operators 1 | . 1 . . . Skim 5 | . 5 . . . Fabricators . | . . . . . Repair Stations . | . . . . . Recycling Units . | . . . . . Scanalyzers . | . . . . . Garrison Access . | . . . . . Data Cores Recovered . | . . . . . Used . | . . . . . Hacking Detections 8 | . 8 . . . Full Trace Events . | . . . . . Feedback Events . | . . . . . Feedback Blocked . | . . . . . Robot Schematics Acquired . | . . . . . Robots Built . | . . . . . Authchips . | . . . . . Time . | . . . . . Total Robot Build Rating . | . . . . . Part Schematics Acquired . | . . . . . Parts Built . | . . . . . Authchips . | . . . . . Time . | . . . . . Total Part Build Rating . | . . . . . Part Studies Acquired . | . . . . . Parts Repaired 1 | . 1 . . . Time 13 | . 13 . . . Parts Recycled . | . . . . . Recycled Matter . | . . . . . Retrieved Matter . | . . . . . Retrieved Components . | . . . . . Parts Scanalyzed . | . . . . . Part Schematics Acquired . | . . . . . Parts Damaged . | . . . . . Bothacking | -11 -10 -10 -10 -8 ------------ Run | Yrd Mat Min Sub Scr Used RIF Installer . | . . . . . Robots Hacked . | . . . . . Non-combat . | . . . . . Combat . | . . . . . Robot Hacks Applied . | . . . . . Relay Couplers Released . | . . . . . Fabnet Peak Effective % . | . . . . . Robots Rewired . | . . . . . Allies Hacked . | . . . . . Hacks Repelled . | . . . . . Allies | -11 -10 -10 -10 -8 -------- Run | Yrd Mat Min Sub Scr Total Allies . | . . . . . Largest Group . | . . . . . Highest-Rated Group . | . . . . . Highest-Rated Ally . | . . . . . Total Orders . | . . . . . Ally Attacks . | . . . . . Total Damage . | . . . . . Kills . | . . . . . Allies Corrupted . | . . . . . Allies Melted 2 | . . . . 2 Intel | -11 -10 -10 -10 -8 ------- Run | Yrd Mat Min Sub Scr Active Infowar (turns) 2543 | . . . 264 2279 Optics 2279 | . . . . 2279 Seismic 264 | . . . 264 . Robot Analysis Total 6 | . 1 . . 5 Derelict Logs Recovered 6 | . . 2 1 3 Drone Launches . | . . . . . Drone Recoveries . | . . . . . Exploration | -11 -10 -10 -10 -8 ------------- Run | Yrd Mat Min Sub Scr Turns Passed 7649 | 86 1755 913 1135 3760 Spaces Moved 3546 | 44 802 448 489 1763 Core 138 | 4 . . . 134 Treads 941 | 40 802 99 . . Legs . | . . . . . Wheels 2467 | . . 349 489 1629 Hover . | . . . . . Flight . | . . . . . Fastest Speed 50 | 50 160 160 195 50 Average Speed 181 | 150 160 187 206 184 Slowest Speed 210 | 160 160 195 210 210 Overloaded Moves . | . . . . . Propulsion Burnouts . | . . . . . Robots Hopped . | . . . . . Potential Cave-ins . | . . . . . Cave-ins Triggered . | . . . . . Exploration Rate (%) 64 | 4 95 96 41 86 Regions Visited 4 Branch Regions 3 Pre-discovered Areas 10 | . 1 2 1 6 Known Exits Taken . | . . . . . Unknown Exits Taken 4 | 1 1 1 1 . Scrap Searched 12 | . . 1 3 8 Spaces Dug 30 | . . 11 19 . Terrain Destroyed 103 | . . 22 33 48 Melee . | . . . . . Projectile 5 | . . . 3 2 AOE 98 | . . 22 30 46 Terrain Rammed . | . . . . . Walls Destroyed . | . . . . . Machines Disabled . | . . . . . Actions | -11 -10 -10 -10 -8 --------- Run | Yrd Mat Min Sub Scr Total 4533 | 56 1114 497 598 2268 Wait 659 | 1 164 9 80 405 Move 3542 | 43 801 447 488 1763 Hop . | . . . . . Pick Up 87 | 3 21 13 5 45 Fast Attach 14 | 6 3 . 1 4 Attach 8 | . 1 1 2 4 Detach 3 | . 1 . 2 . Swap 24 | . 9 4 6 5 Drop 59 | . 18 7 4 30 Fire 137 | 3 96 16 10 12 Melee . | . . . . . Ram . | . . . . . Kick . | . . . . . Crush . | . . . . . Escape Stasis . | . . . . . Rewire . | . . . . . Trap . | . . . . . Miscellaneous . | . . . . . Route ------- -11/Scrapyard -10/Materials (discovered 4 exits: [*Mat x3] / *Min) -10/Mines (discovered 3 exits: [*Mat x2] / *Sub) -10/Subcaves (discovered 4 exits: *Mat x2 / Rec / *Scr) -8/Scraptown (discovered 2 exits: *Fac x2) History --------- Turn | Location | Event 39 | -11/Scrapyard | Discovered new exit (range 15) 87 | -11/Scrapyard | Entered Materials 252 | -10/Materials | Discovered new exit (range 15) 326 | -10/Materials | Build established: Mutant 465 | -10/Materials | Discovered new exit (range 11) 692 | -10/Materials | Discovered new exit (range 13) 1474 | -10/Materials | Discovered new exit (range 9) 1662 | -10/Materials | Learned Storage interactive machine intel 1701 | -10/Materials | Learned location of 1 exit from Recycling 1718 | -10/Materials | Repaired Lgt. Cannon 1731 | -10/Materials | Learned location of 2 exits from Subcaves 1750 | -10/Materials | Learned Storage emergency access door positions 1758 | -10/Materials | Loaded intel: 7 trap records 1775 | -10/Materials | Learned Storage security intel 1802 | -10/Materials | Learned location of Mines (-10) 1839 | -10/Materials | Learned 2 Mines zone layouts 1842 | -10/Materials | Entered Mines 1879 | -10/Mines | Met a Derelict shopkeep closing up shop 2084 | -10/Mines | Core integrity fell below 50% 2250 | -10/Mines | Learned location of Zion (-6) 2416 | -10/Mines | Received a Rocket Launcher from a helpful Derelict 2467 | -10/Mines | Discovered new exit (range 14) 2549 | -10/Mines | Learned location of Recycling (-8) 2551 | -10/Mines | Discovered new exit (range 13) 2648 | -10/Mines | Discovered new exit (range 15) 2755 | -10/Mines | Entered Subcaves 2756 | -10/Subcaves | Approached by a straggling Scientist 2756 | -10/Subcaves | Identified exit to Recycling 2756 | -10/Subcaves | Identified exit to Materials 2817 | -10/Subcaves | Shifting Twisted Machinery released Sub. Beam Cannon 2841 | -10/Subcaves | Shifting Twisted Machinery released Mak. Hammer 3050 | -10/Subcaves | Visited 4L-MR0's lab 3075 | -10/Subcaves | Found Flightbrick 3801 | -10/Subcaves | Met a Zionite searching for "candidates" 3890 | -10/Subcaves | Entered Scraptown 4143 | -8/Scraptown | Scanned Subdweller tech in exchange for log data 4152 | -8/Scraptown | Learned Factory emergency access door positions 4154 | -8/Scraptown | Learned Factory terminal intel 4289 | -8/Scraptown | Visited Spacefarers 4723 | -8/Scraptown | Heard Great Nut preacher, LISTEN AND RECITE! 4809 | -8/Scraptown | Discovered new exit (range 5) 4962 | -8/Scraptown | Visited Bundlers 5123 | -8/Scraptown | Visited Cyclists 5269 | -8/Scraptown | Build established: Derelict-Mutant 5484 | -8/Scraptown | Visited Awakened 5522 | -8/Scraptown | Visited UFD Registry 5522 | -8/Scraptown | Registered with UFD as "Steamslider" 5549 | -8/Scraptown | Visited Cave Peace 5610 | -8/Scraptown | Visited Assassins FH 5627 | -8/Scraptown | Visited IN-MT5's Study 5763 | -8/Scraptown | Visited Science Testing Area 5837 | -8/Scraptown | Visited Analyses Database 5883 | -8/Scraptown | Visited Cartography Club 5910 | -8/Scraptown | Visited Scrapoid Research Area 5938 | -8/Scraptown | Visited Scrap Suit Storage 5965 | -8/Scraptown | Visited LU-1G1's Boring Crew 5992 | -8/Scraptown | Visited Observation Area 6024 | -8/Scraptown | Visited Chapter 10 6424 | -8/Scraptown | Found Deep Structural Scanner 6430 | -8/Scraptown | Learned location of Upper Caves (-4) 6430 | -8/Scraptown | Learned location of Cetus (-4) 6430 | -8/Scraptown | Learned location of Testing (-3) 6430 | -8/Scraptown | Learned location of Quarantine (-2) 6430 | -8/Scraptown | Learned 12 Materials zone layouts 6430 | -8/Scraptown | Learned 16 Research zone layouts 6430 | -8/Scraptown | Learned 4 Access zone layouts 6430 | -8/Scraptown | Learned 4 Recycling zone layouts 6430 | -8/Scraptown | Learned 16 Lower Caves zone layouts 6430 | -8/Scraptown | Learned 8 Upper Caves zone layouts 6430 | -8/Scraptown | Learned location of 1 exit from Factory 6430 | -8/Scraptown | Learned location of 1 exit from Research 6430 | -8/Scraptown | Learned location of 2 exits from Proximity Caves 6430 | -8/Scraptown | Identified exit to Factory 6660 | -8/Scraptown | Build established: Mutant 7415 | -8/Scraptown | Met Optimus 7415 | -8/Scraptown | Accepted into 0bPrime 7538 | -8/Scraptown | Civil war broke out across Scraptown 7584 | -8/Scraptown | Core integrity fell below 20% 7608 | -8/Scraptown | Lost 13 allies 7650 | -8/Scraptown | Destroyed by KM-VVQ(h) with Bolt Gun Last Messages --------------- 07637_ VN-1HU(j) destroyed. 07639_ Q8-HKV(j) heat damages Mak. Salvage Targeting Computer. 07640_ Mak. Microdissipator Network melted. 07640_ Q8-HKV(j) destroyed. 07641_ Acquired 2 matter. 07641_ DG-JA3(g) switches sides: "Sorry everyone but I think they're right!" 07642_ DG-JA3(g) destroyed. 07643_ Bolt penetrates 2X-22N(j). 07643_ Penetrated by Bolt. 07643_ Wheel destroyed. 07645_ Penetrated by Bolt. 07646_ The unstable cave ceiling collapses. 07646_ Ovr. Pulse Rifle crushed. 07646_ Critical hit (Burn: +50). 07646_ 2X-22N(j) destroyed. 07650_ 75-RHW(j) cannibalizes Ion Engine to repair Lgt. Deuterium Engine. 07650_ The unstable cave ceiling collapses. 07650_ Missile Launcher destroyed. 07650_ Bolt penetrates Earth. Map ----- +----------------------------------------------------+ | | | | | | | | | ?????????????????????????????????????????????????? | | ????????????????????######=##????????????????????? | | ?"""????????????????#""*%![[###??????????????????? | | ? "????????????????#"!<%==[! ################???# | | "" "?????#######????#""[ j!% #"""""""""#""""???"" | | "" "#???#"""""""#???## ! #" "#" ?? " | | "" "#???#"" ""#????# % = #" """ " | | "#???#"" ""#????# =! " "#" "" " | | """###?#""" ""#????? #[j #" """ "#" " " | | #?#"" ""#????? != " "#" " | | ###""" """###### ![! #"""""" ""#"" """""" | | ==! | | ! ==% | | [%!= | | ###### ########### [*[ ##########"" """"#### | | #????# #?????????#; !j##????????#" !=%"#??? | | #????" "????####??#%!=#########?#" !/""#??? | | #??? " " ???? ?##*! """""""#?#" """#??? | | """ ""#??" "??### ##*=[= ""#?#" """#??? | | """ "#? " " ?#"" """%=%* #?#"""""""#??? | | """ "#?"""" """"?#" " ! ""#?#########??? | | "" "#???## ##???#" "@!% """"""#????????????? | | " "#????? ?????#" =**!#="""####????????????? | | ?"" ""#????? ?????#" "" %[*=###########?????????? | | ?## ###????? ?????#" =%=%%*## #??######## | | ??# ??????? ?????#"""""**!!=#" ##?# | | ???##??????? ?????######%=[!##" "#?# "" "" | | #??????????? ??????????#;!=!##"" """""" ### ""X"" | | ############ ############ % #" "## """"" | | %[/!! ! ;" [ "## """ | | !/%!%% %* ![[ [=%! "## " | | #############"########## %= %!* ## | | #????????????????????# =![%# *&=%* ## %! | | ######################" ! %% #####"""#!#####%#[##" | | """"""## ![#""" """ =!% ! | | [ "##==[ #" " "% [ != | | ![ "## ] # * = !!%! | | [ "##= ] # !% =!%![ | | ]/ "##!=! # " = !=%[ | | / ! "####=## " #;"=%""#######""=% | | ! "##""%= # # " #???# | | ! "##" [ # ###" ! """#???# | | "##""= # #?#" *%!" #???# | | """ ""## ] [ # #?#"" ! " #???# | | ### ####" "%[" # #?#""" " #???# | | ### ####"" "" """" " # #?#"" " #???# | +----------------------------------------------------+ Best States ------------- Heat Dissipation 47 Energy Generation 15 Energy Capacity 275 Matter Stores 300 Matter Capacity 300 Sight Range 20 Terrain Scan Density 10 Evasion (%) 50 Targeting Accuracy 5 Recoil Reduction 2 Item Schematics ----------------- None Robot Schematics ------------------ None Fabricated ------------ Nothing Repaired ---------- Lgt. Cannon | 30% | -10/Materials Studied --------- None Alien Tech Used ----------------- None Achievements -------------- None Challenges ------------ None Game ------ Seed ZipArmorCompactor Manual? 0 Play Time 00:27:37 Cumulative 1597.6 hours Start 2025.11.02 @ 01:53:10 End 2025.11.02 @ 02:21:43 Sessions 1 Manual Loads 0 Difficulty Rogue Special Mode None Game No. 1137 Rogue 1097 Adventurer 40 Explorer 0 Win Type - Total 203 Types 88/11/74/2/2/4/16/2/1/3 Lore% 97 Gallery% 97 Achievement% 79 Wizard Run 0 Options --------- Layout 0 ASCII 0 Keyboard 0 Movement Numpad Keybinds 0 Fullscreen 0 Font 20/Terminus Map View 76x50 Zoom Use 0% Tactical HUD 1 Map Filters NONE Filters NONE Steam 1 RUN: 767a5208-56f5-46c4-9fdc-b88bf20a78b7